[Event "FIDE CB Open 2022"]
[Site "Ceske Budejovice"]
[Date "2022.07.06"]
[Round "6.27"]
[White "Prazak, Daniel"]
[Black "Hlavac, Rudolf"]
[Result "1-0"]
[ECO "B30"]
[WhiteElo "2113"]
[BlackElo "1931"]
[Annotator "TA"]
[PlyCount "49"]
[EventDate "2022.07.01"]
[EventType "swiss"]
[EventCountry "CZE"]
[SourceTitle "playchess.com"]
[Source "ChessBase"]
[SourceQuality "1"]
[TimeControl "40/5400+30:1800+30"]

{[%evp 14,49,18,11,18,-3,17,16,18,26,271,293,299,300,268,290,295,296,301,336,353,183,456,281,278,277,292,278,916,756,921,912,918,916,895,889,852,845]} 1. Nf3 {[%emt 0:00:38]} c5 {[%emt 0:00:46]} 2. e4 {[%emt 0:00:29]} Nc6 {[%emt 0:01:12]} 3. Nc3 {[%emt 0:00:32]} e5 {[%emt 0:00:30]} 4. Bc4 {[%emt 0:00:30]} Be7 {[%emt 0:02:57]} 5. d3 {[%emt 0:00:18]} d6 {[%emt 0:00:11]} 6. O-O {[%emt 0:02:38]} Nf6 {[%emt 0:03:40]} 7. Ng5 {[%emt 0:02:20]} O-O {[%emt 0:00:13]} 8. f4 {[%emt 0:00:43]} Bg4 {[%emt 0:03:02] B30: Sicilian: 2...Nc6 3 Bb5, lines without ...g6.} 9. Qe1 {[%emt 0:05:52]} Nd4 {[%emt 0:01:17]} 10. fxe5 {[%emt 0:02:00] is the legacy move (10.Qf2).} (10. Qh4 {with more complications.} h5 11. h3 Be6 12. fxe5 dxe5 13. Nxe6 fxe6 14. a4) 10... dxe5 {[%emt 0:04:38] The position is equal.} (10... Nxc2 $2 11. Nxf7 Rxf7 12. Bxf7+ Kxf7 13. exf6 $1 Bxf6 14. Qh4 $1 $18) 11. Qh4 {[%emt 0:18:55][%cal Of1f6] Strongly threatening Rxf6!} h6 $2 {[%emt 0:03:22]} (11... h5 $11 {and Black has nothing to worry.}) 12. Nxf7 $1 $18 {[%emt 0:00:52]} Rxf7 {[%emt 0:00:53]} 13. Bxf7+ {[%emt 0:00:31]} Kxf7 {[%emt 0:00:54]} 14. Qxg4 {[%emt 0:00:11]} Nxc2 {[%emt 0:01:22]} 15. Rb1 {[%emt 0:07:28]} Qd4+ {[%emt 0:03:37]} 16. Kh1 {[%emt 0:01:16] aiming for Nd5.} Qxd3 {[%emt 0:00:27][%cal Rd3f1] [#]} 17. Rf3 {[%emt 0:09:45] [#] The board is on fire.} (17. Bxh6 $142 $1 {[%mdl 512]} gxh6 18. Rbd1) 17... Qd6 $146 {[%emt 0:09:25]} (17... Rd8 18. Bxh6 (18. Rxd3 Nxg4 19. Rxd8 Bxd8 $11) 18... gxh6) ({Predecessor:} 17... Nd4 18. Qxg7+ Kxg7 19. Rxd3 Rf8 20. Be3 Ng4 21. Nd5 Bg5 22. h3 Nxe3 23. Nxe3 Rf4 {1-0 (49) Zeller,F (2402)-Wolf,U (2161) Heusenstamm 2016}) 18. Qh5+ {[%emt 0:15:39]} ({Not} 18. Nd5 Nd4 $18) 18... Kg8 {[%emt 0:02:24]} 19. Qg6 {[%emt 0:00:31] Black must now prevent Bxh6.} Nh7 {[%emt 0:09:49]} 20. Nd5 {[%emt 0:05:13] Hoping for Qf7+.} Bf8 $2 {[%emt 0:06:31]} (20... Kh8 21. Qf7 Bh4) 21. Qf7+ {[%emt 0:02:14] White is clearly winning.} Kh8 {[%emt 0:04:29] [#]} 22. Bxh6 $1 {[%emt 0:07:03][%mdl 512]} gxh6 {[%emt 0:04:52]} 23. Rg3 {[%emt 0:01:17][%csl Gg3][%cal Rf7g8]} ({Weaker is} 23. Qxb7 Qb8 24. Rb3 Qxb7 25. Rxb7 Ng5 $11) 23... Ng5 {[%emt 0:00:20] [#]} 24. Rxg5 $1 {[%emt 0:00:37][%mdl 512]} hxg5 {[%emt 0:00:27]} 25. Nf6 {[%emt 0:00:11] Black got outplayed after the opening.  Weighted Error Value: White=0.43/Black=0.80} 1-0

[Event "FIDE CB Open 2022"]
[Site "Ceske Budejovice"]
[Date "2022.07.06"]
[Round "6.28"]
[White "Saravanan Durga"]
[Black "Sykora, Ondrej"]
[Result "1-0"]
[ECO "A44"]
[WhiteElo "1908"]
[BlackElo "2099"]
[Annotator "TA"]
[PlyCount "154"]
[EventDate "2022.07.01"]
[EventType "swiss"]
[EventCountry "CZE"]
[SourceTitle "playchess.com"]
[Source "ChessBase"]
[SourceQuality "1"]
[TimeControl "40/5400+30:1800+30"]

{[%evp 14,153,70,54,88,81,104,73,145,67,79,41,132,135,128,135,119,120,145,68,46,58,202,235,192,70,76,0,82,33,127,139,126,27,247,261,271,199,181,33,52,0,13,0,27,26,52,59,49,60,123,8,47,-31,13,7,52,0,0,0,19,-14,0,-162,-158,-456,-445,-679,-662,-958,-904,-29995,-29989,-29997,-893,-760,-783,-29968,-29969,-29970,-4837,-1838,-1290,-2166,-1016,-1651,-29966,-29965,-29965,-29969,-2466,-29968,-29969,-29968,-29967,-29961,-29962,-29962,-2632,-29962,-29963,-29961,-29960,-29952,-29945,-12790,-10739,-5589,-5181,-29963,-29965,-4925,-4917,-29972,-29971,-29983,-29984,-29984,-29985,-29985,-29986,-29986,-29987,-29988,-29989,-29989,-29990,-29990,-29990,-29991,-29991,-29991,-29992,-29992,-29993,-29993,-29993,-29997,-29998,-29998,-29999,-29999]} 1. d4 {[%emt 0:00:04]} c5 {[%emt 0:05:22]} 2. d5 {[%emt 0:00:33]} e5 {[%emt 0:00:08]} 3. e4 {[%emt 0:00:22]} d6 {[%emt 0:00:03]} 4. Nf3 {[%emt 0:00:53][%cal Bg1f3,Bf3d2,Bd2c4][%mdl 32]} Nf6 {[%emt 0:00:04]} 5. Nc3 {[%emt 0:01:21]} Be7 {[%emt 0:00:10]} 6. Be2 {[%emt 0:01:03]} O-O {[%emt 0:00:11]} 7. O-O {[%emt 0:04:20]} Ne8 {[%emt 0:00:25]} 8. Nd2 {[%emt 0:03:38]} g6 {[%emt 0:00:15] A44: Semi-Benoni.} 9. Nc4 {[%emt 0:05:28]} f5 {[%emt 0:01:41]} 10. f4 {[%emt 0:04:22]} (10. Bh6 {keeps more tension.} Ng7 11. f4 exf4 12. exf5 g5 13. g4) 10... exf4 {[%emt 0:02:57] [#]} (10... Nd7 $142) 11. exf5 $146 {[%emt 0:01:11]} (11. Rxf4 $6 Bf6 $14) (11. Bxf4 $16 {Hoping for exf5.} fxe4 12. Nxe4) ({Predecessor:} 11. Bxf4 g5 12. Bd2 f4 13. g3 Bh3 14. Rf3 Bg4 15. Rf2 Bd7 16. a4 fxg3 17. Rxf8+ Bxf8 18. hxg3 {1-0 (40) Steingrimsson,H (2439)-Aleskerov,F (2309) Kusadasi 2006}) 11... g5 $14 {[%emt 0:00:43]} 12. Bd3 {[%emt 0:29:14][%cal Oh2h4] Threatens to win with h4!} (12. h4 $5) 12... Ng7 {[%emt 0:02:18]} (12... Bf6 $14) 13. h4 $1 $16 {[%emt 0:12:44]} h6 {[%emt 0:08:13]} 14. hxg5 {[%emt 0:03:01]} hxg5 {[%emt 0:00:02]} 15. g4 {[%emt 0:01:59]} Bf6 {[%emt 0:12:15]} 16. Ne4 {[%emt 0:03:11]} (16. Bd2 $16) 16... Ne8 $14 {[%emt 0:00:30]} 17. a4 {[%emt 0:06:34] And now Kg2 would win.} Na6 {[%emt 0:02:40]} (17... b6 $14) 18. c3 $18 {[%emt 0:01:12]} Nac7 {[%emt 0:00:15]} 19. Bc2 {[%emt 0:03:21]} (19. Kf2 $18) 19... b6 $14 {[%emt 0:00:53]} 20. Bb3 {[%emt 0:02:51] White is much more active. The black rooks are badly placed.} (20. Ncd2 $1 $16) 20... Ba6 {[%emt 0:02:44]} (20... Rf7 $11) 21. Rf2 {[%emt 0:01:33]} (21. Kf2 $16) 21... Bxc4 {[%emt 0:00:41]} (21... Rf7 $14) 22. Bxc4 $16 {[%emt 0:00:09]} Qe7 {[%emt 0:00:50]} 23. Qd3 {[%emt 0:03:48]} (23. Qf3 $1 $16) 23... Ng7 $2 {[%emt 0:02:29]} (23... Rf7 $11 {and Black is okay.}) 24. Bd2 {[%emt 0:00:53]} Kf7 {[%emt 0:00:50]} 25. Rh2 {[%emt 0:04:24]} Rh8 {[%emt 0:00:05]} 26. Rxh8 {[%emt 0:00:36]} (26. Re1 $18 Qd7 27. Bb5 Nxb5 28. Qxb5 (28. axb5 Rxh2 29. Kxh2 Rh8+ 30. Kg2 Rh4 $14)) 26... Rxh8 $14 {[%emt 0:00:01]} 27. Kg2 {[%emt 0:01:41]} ({Better is} 27. Re1 $14 Qd8 28. Kg2 (28. Nxf6 Qxf6 29. Qf3 Qh6 $17)) 27... Rh4 {[%emt 0:00:46]} 28. Nf2 {[%emt 0:01:11]} (28. Nxf6 $2 Qxf6 29. Rh1 (29. Qf3 $2 Qh6 $19) 29... Rxg4+ 30. Kf2 Rg3 $19) 28... Qd8 {[%emt 0:04:14]} 29. Rh1 {[%emt 0:00:28]} Qh8 {[%emt 0:00:14]} 30. Rxh4 {[%emt 0:00:34]} Qxh4 {[%emt 0:00:02]} 31. b4 {[%emt 0:02:41]} Be5 {[%emt 0:02:03]} ({Black should play} 31... Nge8 $14) 32. Qf3 {[%emt 0:00:10]} (32. bxc5 $16 {Strongly threatening Qh3.} bxc5 33. Qh3) 32... Nge8 {[%emt 0:01:01]} 33. Nd3 {[%emt 0:00:49]} (33. Qh3 $14 Nf6 34. Qxh4 gxh4 35. g5 Nfxd5 36. Kh3) 33... Kf6 {[%emt 0:01:03]} (33... Qh8 $5 {[%cal Re5c3]} 34. Nf2 (34. Nxe5+ Qxe5 35. Qe2 Ke7 $17) 34... cxb4 35. cxb4 Nf6 $11) 34. Be1 {[%emt 0:00:21] Chess con chili.} ({Much weaker is} 34. Nxe5 dxe5 35. Bd3 Ke7 $17) 34... Qh8 {[%emt 0:00:45]} 35. Nf2 {[%emt 0:00:29]} (35. bxc5 $14 bxc5 36. Bf2) 35... Ke7 $11 {[%emt 0:01:03]} 36. Ne4 {[%emt 0:00:12]} Qh6 {[%emt 0:00:18]} 37. a5 {[%emt 0:00:43]} b5 {[%emt 0:00:22]} 38. Ba2 {[%emt 0:00:45]} (38. Be2 $11 {and White has nothing to worry.}) 38... c4 $1 $19 {[%emt 0:00:08]} 39. Qd1 $2 {[%emt 0:00:36]} (39. Bf2 $17 a6 40. Bb1) 39... f3+ {[%emt 0:06:12]} 40. Kxf3 {[%emt 0:00:27]} (40. Qxf3 $142 Qh2+ 41. Kf1 Qxa2 42. Nxg5) 40... Qh1+ {[%emt 0:00:02]} 41. Ke3 {[%emt 0:30:15]} Bf4+ {[%emt 0:29:45]} 42. Kd4 {[%emt 0:00:00]} Nf6 {[%emt 0:00:00]} 43. Nxf6 {[%emt 0:00:00]} Kxf6 {[%emt 0:00:00]} (43... Qg1+ $142 44. Bf2 Qxd1+ 45. Ke4 Qd3#) 44. Bxc4 {[%emt 0:00:00]} Be5+ {[%emt 0:00:00][%mdl 64] Deflection} 45. Ke3 {[%emt 0:00:00]} bxc4 {[%emt 0:00:00]} 46. Kd2 {[%emt 0:00:00]} Qxd5+ {[%emt 0:00:00]} (46... Nxd5 $142 47. Kc1 Nxc3 48. Bxc3 Qxd1+ 49. Kxd1 Bxc3 50. Ke2 Bxb4 51. Ke3 d5 52. Kd4 Bxa5 53. Ke3 Bb6+ 54. Kd2 d4 55. Kc2 d3+ 56. Kc3 Ba5+ 57. Kb2 c3+ 58. Kb1 c2+ 59. Kc1 Bb4 60. Kb2 Bd2 61. Ka2 c1=Q 62. Kb3 Qc2+ 63. Ka3 Qb1 64. Ka4 Qb4#) 47. Kc2 {[%emt 0:00:00]} Qxd1+ {[%emt 0:00:00]} 48. Kxd1 {[%emt 0:00:00]} Nb5 {[%emt 0:00:00]} (48... a6 $142 49. Kc1 Nb5) 49. Kc2 {[%emt 0:00:00]} a6 {[%emt 0:00:00]} 50. Bd2 {[%emt 0:00:00]} d5 {[%emt 0:00:00]} 51. Be1 {[%emt 0:00:00]} Kf7 {[%emt 0:00:00]} (51... Ke7 $142 52. Bd2 Kf6 53. Be1 d4 54. cxd4 Bxd4 55. Kc1 Nc3 56. Kd2 Ne4+ 57. Kc2 Ke5 58. b5 axb5 59. a6 Kd5 60. Bb4 Nf2 61. Bc3 Ba7 62. Bd2 Nxg4 63. Bxg5 Ne3+ 64. Kb2 Nxf5 65. Bd2 Nd4 66. Bf4 Nc6 67. Bh2 Nb4 68. Bc7 Nxa6 69. Bg3 b4 70. Be1 Bd4+ 71. Kb1 b3 72. Bd2 c3 73. Bxc3 Bxc3 74. Kc1 b2+ 75. Kb1 Kc4 76. Ka2 Bd4 77. Kb1 Kc3 78. Ka2 Kc2 79. Ka3 b1=Q 80. Ka4 Qb4#) 52. Kb2 {[%emt 0:00:00]} Bf6 {[%emt 0:00:00]} 53. Kc2 {[%emt 0:00:00]} Ke8 {[%emt 0:00:00]} 54. Bd2 {[%emt 0:00:00]} Kd7 {[%emt 0:00:00]} 55. Be1 {[%emt 0:00:00]} Kc6 {[%emt 0:00:00]} (55... Kc7 $142 56. Kb2 Kc6 57. Kc2 d4 58. cxd4 Nxd4+ 59. Kd1 Nf3 60. Bf2 Ne5 61. Ke2 Nxg4 62. Bg1 Nh6 63. Kf3 Nxf5 64. Ke4 {[#]} Bd4 $1 {[%mdl 512]} 65. Bh2 c3 $1 66. Kd3 Kb5 67. Bb8 Kxb4 68. Ke4 c2 69. Kxf5 c1=Q 70. Bd6+ Kb5 71. Bg3 Qc3 72. Kg4 Qe3 73. Bb8 Qe6+ 74. Kxg5 Qg8+ 75. Kh4 Qxb8 76. Kg5 Qe5+ 77. Kg4 Qe4+ 78. Kg3 Kxa5 79. Kh3 Qf3+ 80. Kh2 Qg4 81. Kh1 Qh3#) 56. Kb2 {[%emt 0:00:00]} Nd6 {[%emt 0:00:00]} 57. Bd2 {[%emt 0:00:00]} Ne4 {[%emt 0:00:00]} 58. Be1 {[%emt 0:00:00]} Be5 {[%emt 0:00:00]} 59. Kc2 {[%emt 0:00:00]} Bf4 {[%emt 0:00:00] White must now prevent ...Nf6.} 60. Kd1 {[%emt 0:00:00]} Nf6 {[%emt 0:00:00]} 61. Ke2 {[%emt 0:00:00]} Nxg4 {[%emt 0:00:00]} 62. Kf3 {[%emt 0:00:00]} Ne5+ {[%emt 0:00:00]} 63. Ke2 {[%emt 0:00:00]} Nd3 {[%emt 0:00:00] Black mates.} 64. f6 {[%emt 0:00:00]} Nxe1 {[%emt 0:00:00]} 65. f7 {[%emt 0:00:00] [#]} Bd6 $1 {[%emt 0:00:00]} 66. Kxe1 {[%emt 0:00:00] KB-KP} (66. b5+ Kxb5) 66... d4 {[%emt 0:00:00]} 67. Kd2 {[%emt 0:00:00]} g4 {[%emt 0:00:00][%cal Bg5g4,Bg4g3][%mdl 32]} 68. cxd4 {[%emt 0:00:00]} Bxb4+ {[%emt 0:00:00] KB-K3P} 69. Ke2 {[%emt 0:00:00]} g3 {[%emt 0:00:00]} 70. Kf3 {[%emt 0:00:00]} c3 {[%emt 0:00:00]} 71. Ke2 {[%emt 0:00:00]} g2 {[%emt 0:00:00]} 72. Kf2 {[%emt 0:00:00]} c2 {[%emt 0:00:00]} 73. Kxg2 {[%emt 0:00:00]} c1=Q {[%emt 0:00:00]} 74. Kg3 {[%emt 0:00:00]} Qg5+ {[%emt 0:00:00]} 75. Kh3 {[%emt 0:00:00]} Bd6 {[%emt 0:00:00][%csl Gd6][%cal Rg5g3]} 76. d5+ {[%emt 0:00:00]} Kxd5 {[%emt 0:00:00][%csl Gd6][%cal Rg5g3]} 77. f8=Q {[%emt 0:00:00]} Qg3# {[%emt 0:00:00][%mdl 32768] A wild game.  Weighted Error Value: White=0.71/Black=0.83. Loss on time!?} 1-0

[Event "FIDE CB Open 2022"]
[Site "Ceske Budejovice"]
[Date "2022.07.06"]
[Round "6.29"]
[White "Zilavy, Jan"]
[Black "Toman, Jan"]
[Result "1-0"]
[ECO "D58"]
[WhiteElo "2090"]
[BlackElo "2142"]
[Annotator "TA"]
[PlyCount "101"]
[EventDate "2022.07.01"]
[EventType "swiss"]
[EventCountry "CZE"]
[SourceTitle "playchess.com"]
[Source "ChessBase"]
[SourceQuality "1"]
[TimeControl "40/5400+30:1800+30"]

{[%evp 24,101,27,16,55,62,47,49,92,88,74,81,92,96,109,104,108,106,113,100,97,97,102,104,106,85,120,103,118,107,111,99,99,72,87,83,87,87,87,87,87,87,88,73,73,56,56,56,56,8,56,8,56,8,56,8,56,8,8,0,8,8,8,8,8,8,37,37,37,37,402,402,29984,29985,29985,29986,29986,29987,29987,29988]} 1. d4 {[%emt 0:00:06]} Nf6 {[%emt 0:00:10]} 2. c4 {[%emt 0:00:09]} e6 {[%emt 0:00:12]} 3. Nf3 {[%emt 0:00:09]} d5 {[%emt 0:00:08]} 4. Nc3 {[%emt 0:00:12]} Be7 {[%emt 0:05:38]} 5. Bg5 {[%emt 0:00:32]} h6 {[%emt 0:00:08]} 6. Bh4 {[%emt 0:00:18]} O-O {[%emt 0:00:09]} 7. e3 {[%emt 0:00:27]} b6 {[%emt 0:00:40]} 8. Be2 {[%emt 0:01:42]} Bb7 {[%emt 0:00:39]} 9. Bxf6 {[%emt 0:00:53]} Bxf6 {[%emt 0:00:12]} 10. cxd5 {[%emt 0:00:04]} exd5 {[%emt 0:01:09]} 11. b4 {[%emt 0:00:08]} c5 {[%emt 0:02:02]} 12. bxc5 {[%emt 0:01:29]} bxc5 {[%emt 0:01:28]} 13. Rb1 {[%emt 0:00:13]} Ba6 {[%emt 0:06:01] D58: Queen's Gambit Declined: Tartakower Defence.} 14. O-O {[%emt 0:12:39]} Bxe2 {[%emt 0:00:52]} 15. Nxe2 {[%emt 0:00:45] [#]} Nd7 $146 {[%emt 0:21:32] White is slightly better.} ({Predecessor:} 15... c4 16. Qa4 Nd7 17. Nc3 Nb6 18. Qa5 Qd6 19. Nb5 Qd7 20. Nc3 Rfd8 21. Rfc1 Qd6 {½-½ (29) Zhukova,N (2499)-Voit,D (2319) Moscow 2010}) 16. dxc5 {[%emt 0:08:00]} Nxc5 {[%emt 0:00:09]} 17. Nf4 {[%emt 0:00:43]} Ne4 {[%emt 0:08:58]} 18. Nxd5 {[%emt 0:02:03]} Nc3 {[%emt 0:00:13]} 19. Nxc3 {[%emt 0:00:13]} Bxc3 {[%emt 0:00:04]} 20. Qxd8 {[%emt 0:01:39]} Rfxd8 {[%emt 0:00:12]} 21. Rb7 {[%emt 0:00:27]} Rdb8 {[%emt 0:03:41]} 22. Rfb1 {[%emt 0:00:43] White is more active.} Rxb7 {[%emt 0:00:06]} 23. Rxb7 $16 {[%emt 0:00:05][%mdl 4096] Endgame KRB-KRN} a5 {[%emt 0:01:55]} 24. Kf1 {[%emt 0:00:39]} Rd8 {[%emt 0:08:59]} 25. Ke2 {[%emt 0:00:29] Prevents Rd1.} Bb4 {[%emt 0:06:24]} 26. Nd4 {[%emt 0:15:16]} Rc8 {[%emt 0:02:28]} 27. Ra7 {[%emt 0:01:46]} Rc3 {[%emt 0:02:00]} 28. a4 {[%emt 0:02:57]} Ra3 {[%emt 0:01:28]} 29. Nc2 {[%emt 0:00:13]} Rxa4 {[%emt 0:00:14]} 30. Nxb4 {[%emt 0:00:07]} Rxb4 {[%emt 0:00:03]} 31. Rxa5 {[%emt 0:00:08] KR-KR} g6 {[%emt 0:00:29]} 32. Rd5 {[%emt 0:02:35]} h5 {[%emt 0:00:24]} 33. f4 {[%emt 0:03:02]} Rb6 {[%emt 0:03:45]} 34. f5 {[%emt 0:01:16]} Kg7 {[%emt 0:01:58]} 35. fxg6 {[%emt 0:00:45]} fxg6 {[%emt 0:00:06]} 36. e4 {[%emt 0:03:43]} (36. h4 $14 {might be stronger.}) 36... Kf6 {[%emt 0:10:46]} (36... Rb2+ $1 $11 {is more appropriate.} 37. Kf3 h4) 37. h3 {[%emt 0:04:50]} (37. h4 $14) 37... Ra6 {[%emt 0:02:22]} (37... h4 $11) 38. Kf3 {[%emt 0:01:57]} (38. h4 $1 $14) 38... Ra2 {[%emt 0:01:01]} (38... h4 $1 $11 {deserves consideration.}) 39. Rd6+ {[%emt 0:05:04]} (39. h4 $1 $14) 39... Kf7 {[%emt 0:02:10]} (39... Kg5 $1 $11) 40. e5 {[%emt 0:03:11]} (40. h4 $14 {feels stronger.}) 40... Rb2 $11 {[%emt 0:00:52]} 41. g3 {[%emt 0:40:19]} Rh2 {[%emt 0:33:42]} 42. Rf6+ {[%emt 0:01:38]} Kg7 $1 {[%emt 0:01:17]} 43. Rf4 {[%emt 0:00:37] aiming for e6.} Ra2 {[%emt 0:00:00]} 44. Re4 {[%emt 0:00:00]} Ra7 {[%emt 0:00:00]} 45. Kf4 {[%emt 0:00:00] And now g4 would win.} Rf7+ $1 {[%emt 0:00:00]} 46. Kg5 {[%emt 0:00:00] Threatens to win with e6.} Rf3 $2 {[%emt 0:00:00][%mdl 8192] [#] Loses the game.} ({Black should play} 46... Rf5+ $1 $14 47. Kh4 Kf7) 47. e6 $1 $18 {[%emt 0:00:00] White threatens e7 and mate.} Kf8 {[%emt 0:00:00]} (47... Rf5+ $18 48. Kh4 Kf8 49. e7+ Ke8) 48. Rf4+ {[%emt 0:00:00] White mates.} Rxf4 {[%emt 0:00:00]} 49. gxf4 {[%emt 0:00:00][%cal Bg3f4,Bf4f5][%mdl 32]} Ke7 {[%emt 0:00:00]} 50. Kxg6 {[%emt 0:00:00]} Kxe6 {[%emt 0:00:00]} 51. f5+ {[%emt 0:00:00] Weighted Error Value: White=0.11 (very precise) /Black=0.41} 1-0

[Event "FIDE CB Open 2022"]
[Site "Ceske Budejovice"]
[Date "2022.07.06"]
[Round "6.30"]
[White "Mrazik, Tomas"]
[Black "Slaby, Matej"]
[Result "1-0"]
[ECO "B54"]
[WhiteElo "2055"]
[BlackElo "1796"]
[Annotator "TA"]
[PlyCount "123"]
[EventDate "2022.07.01"]
[EventType "swiss"]
[EventCountry "CZE"]
[SourceTitle "playchess.com"]
[Source "ChessBase"]
[SourceQuality "1"]
[TimeControl "40/5400+30:1800+30"]

{[%evp 10,123,27,22,44,26,38,22,55,58,103,9,14,0,0,0,-4,-18,22,29,23,-12,32,11,16,-28,-24,-26,-12,-61,-52,-55,-55,-47,0,-42,-34,-36,-41,-22,-32,-70,-33,-43,-31,-33,-41,-35,0,-91,-72,-72,-66,-75,-42,-268,-269,-713,-98,-133,-135,-144,-27,-47,125,139,327,0,307,314,394,148,146,0,375,150,145,150,154,154,146,133,163,163,163,157,157,162,124,132,124,102,96,94,456,456,402,392,1349,1122,2232,1770,5390,4373,5522,4939,29974,12048,6195,5518,29976,29977,29975,12850,29975,29975]} 1. e4 {[%emt 0:00:03]} c5 {[%emt 0:04:47]} 2. Nc3 {[%emt 0:00:05]} e6 {[%emt 0:00:09]} 3. Nf3 {[%emt 0:00:21]} a6 {[%emt 0:00:07]} 4. d4 {[%emt 0:00:24]} cxd4 {[%emt 0:00:05]} 5. Nxd4 {[%emt 0:00:05]} d6 {[%emt 0:00:13]} 6. g3 {[%emt 0:00:16]} b6 {[%emt 0:00:24] B54: Sicilian: 2...d6 3 d4 cxd4 4 Nxd4, Unusual Lines .} 7. Bg2 {[%emt 0:00:40][%cal Oe4e5]} Bb7 {[%emt 0:00:06]} 8. O-O {[%emt 0:00:24]} Nf6 {[%emt 0:00:19] The position is equal.} 9. Re1 {[%emt 0:00:22] And now e5 would win.} Qc7 {[%emt 0:00:24] [#]} 10. Be3 {[%emt 0:13:36]} ({Better is} 10. Nd5 $1 $16 {[%cal Rd5c7][%mdl 512]} exd5 11. exd5+ Kd8 12. Bg5) 10... Be7 {[%emt 0:00:31]} 11. a4 {[%emt 0:01:51]} Nbd7 {[%emt 0:01:30][%cal Bb8d7,Bd7e5,Be5c6][%mdl 32]} 12. Qe2 {[%emt 0:03:15]} O-O {[%emt 0:00:53] [#]} 13. g4 $146 {[%emt 0:06:08][%cal Bg3g4,Bg4g5][%mdl 32]} ({Predecessor:} 13. Rad1 Rfe8 14. h3 Nc5 15. Bc1 Rac8 16. Kh2 Qb8 17. f4 g6 18. b4 Ncd7 19. Bb2 {1-0 (41) Shuvalova,P (2454)-Morris Suzuki,S (2043) Chess.com INT 2020}) 13... Ne5 {[%emt 0:05:04]} 14. g5 {[%emt 0:04:54]} Nfd7 {[%emt 0:01:26]} 15. Rad1 {[%emt 0:07:22]} Rfe8 {[%emt 0:06:37]} (15... Nc4 $5 {[%cal Rc4b2]} 16. Bc1 Bxg5 17. Bxg5 Nxb2 $11) 16. Bc1 {[%emt 0:03:47]} Nc6 {[%emt 0:02:18]} 17. Qh5 {[%emt 0:06:59]} g6 {[%emt 0:02:58]} 18. Qg4 {[%emt 0:05:57][%cal Od4e6]} Bf8 {[%emt 0:03:57]} 19. Re3 {[%emt 0:04:12]} (19. Nxc6 $11 Qxc6 20. Qg3) 19... Nxd4 $15 {[%emt 0:10:44]} 20. Rxd4 {[%emt 0:00:02]} Bg7 {[%emt 0:00:17]} 21. Rd1 {[%emt 0:00:17]} Bc6 {[%emt 0:01:53]} (21... Rec8 $15) 22. Rh3 {[%emt 0:02:35]} b5 {[%emt 0:02:27]} 23. axb5 {[%emt 0:03:29]} axb5 {[%emt 0:02:53] Strongly threatening ...b4.} 24. Bf4 {[%emt 0:04:26]} e5 {[%emt 0:00:21]} 25. Be3 {[%emt 0:00:33]} Nf8 {[%emt 0:05:46]} (25... b4 $5 {[%cal Rb4c3]} 26. Nd5 Bxd5 27. Rxd5 Ra1+ 28. Bf1 (28. Rd1 Rea8 $15) 28... Nf8 $15) 26. Bf1 {[%emt 0:07:44]} Bd7 {[%emt 0:07:02]} 27. Qe2 {[%emt 0:03:49]} Bxh3 {[%emt 0:00:25]} 28. Bxh3 {[%emt 0:00:14]} Qc4 {[%emt 0:02:15]} 29. Qd2 {[%emt 0:01:49]} (29. Qxc4 $11 {keeps the balance.} bxc4 30. Bf1) 29... b4 {[%emt 0:01:36]} 30. Nd5 {[%emt 0:06:17]} Ra2 {[%emt 0:07:31]} ({Much worse is} 30... Qxe4 $6 31. Bg2 Qf5 32. Nc7 $11) 31. Rb1 {[%emt 0:01:11]} Qxe4 {[%emt 0:02:04]} 32. Nxb4 {[%emt 0:00:18]} ({Only move:} 32. Bg2 $1 $15 Qh4 33. Qxb4 Qxb4 34. Nxb4) 32... Ra4 $19 {[%emt 0:01:47]} 33. Nd5 $2 {[%emt 0:00:08]} (33. Nd3) 33... Qh4 $2 {[%emt 0:01:09]} (33... Qf3 $1 $19 34. Bc8 Rxc8 35. Ne7+ Kh8 36. Nxc8 Rg4+ 37. Kf1 Qh1+ 38. Ke2 Qxb1) 34. Bg2 {[%emt 0:02:00]} Ne6 {[%emt 0:02:00]} 35. b4 {[%emt 0:00:56]} Nd4 {[%emt 0:09:37]} (35... Nf4 $17 36. Bxf4 exf4 37. Qxf4 Qxf4 38. Nxf4 Rc8) 36. c3 $11 {[%emt 0:06:24]} Nb5 {[%emt 0:01:00]} (36... Nf5 $15 {stays ahead.} 37. b5 Nxe3 38. Qxe3 Qg4) 37. Qd3 $16 {[%emt 0:01:17][%mdl 1024] White has strong compensation.} Rb8 {[%emt 0:02:49]} (37... Na3 $16 {keeps fighting.} 38. Ra1 Qg4) 38. Ne7+ $2 {[%emt 0:00:22]} ({White has to play} 38. Nb6 $18) 38... Kf8 $2 {[%emt 0:02:28][%mdl 8192]} (38... Kh8 $11 {and Black stays safe.}) 39. Nc6 $18 {[%emt 0:00:08]} Rb7 {[%emt 0:00:14]} 40. Na5 $2 {[%emt 0:01:33]} (40. Qd5 $1 $18) 40... Rb8 $16 {[%emt 0:00:40][%cal Oe5e4] [#] White must now prevent ...e4!} 41. Nc6 $2 {[%emt 0:34:06]} (41. Nb7 $1 $16 Rxb7 42. Bxb7 Qg4+ 43. Bg2) 41... Rb7 $18 {[%emt 0:30:11] [#]} 42. Nd8 {[%emt 0:00:00]} (42. Qd5 $1 $18 {is the precise move to win.}) 42... Rb8 $16 {[%emt 0:00:00]} 43. Nb7 {[%emt 0:00:00] 0x0.0016861e1d09dp-1022s more active pieces.} Rxb7 {[%emt 0:00:00]} 44. Bxb7 {[%emt 0:00:00] A strong pair of Bishops.} Qg4+ {[%emt 0:00:00]} 45. Bg2 {[%emt 0:00:00][%cal Bb7g2,Bg2c6,Bc6a4,Ba4c2,Bc2f5,Bf5h7,Bh7e4,Be4d5][%mdl 32]} Qf5 {[%emt 0:00:00]} 46. Qxf5 {[%emt 0:00:00]} gxf5 {[%emt 0:00:00]} 47. Bc6 {[%emt 0:00:00]} Nxc3 {[%emt 0:00:00]} 48. Bxa4 {[%emt 0:00:00]} Nxb1 {[%emt 0:00:00][%mdl 4096] Endgame KBB-KBN} 49. b5 {[%emt 0:00:00][%cal Bb4b5,Bb5b6][%mdl 32] aiming for b6.} Ke7 {[%emt 0:00:00]} 50. b6 {[%emt 0:00:00] White wants to mate with b7.} Kd8 {[%emt 0:00:00]} 51. Bc2 {[%emt 0:00:00][%csl LRb1,LRf5]} Nc3 {[%emt 0:00:00][%mdl 8192]} (51... f4 $16 {is more resistant.}) 52. Bxf5 $18 {[%emt 0:00:00]} Nd5 {[%emt 0:00:00]} 53. Bxh7 {[%emt 0:00:00]} Nxe3 $2 {[%emt 0:00:00]} (53... f6 54. h4 Nxe3) 54. fxe3 {[%emt 0:00:00] KB-KB} Kd7 {[%emt 0:00:00]} 55. Be4 {[%emt 0:00:00]} f6 {[%emt 0:00:00]} 56. g6 {[%emt 0:00:00]} f5 {[%emt 0:00:00]} 57. Bd5 {[%emt 0:00:00] Threatening mate with b7.} Bf6 {[%emt 0:00:00]} 58. h4 {[%emt 0:00:00]} (58. b7 $142 Kc7 59. Kf2 Kb8 60. e4 f4 61. Kf3 Bg7 62. h4 Kc7 63. Kg4) 58... Bg7 {[%emt 0:00:00]} 59. Kg2 {[%emt 0:00:00]} Bh6 {[%emt 0:00:00]} 60. b7 {[%emt 0:00:16]} Kc7 {[%emt 0:00:00]} 61. Kg3 {[%emt 0:00:54] White threatens e4 and mate.} Kb8 {[%emt 0:00:00]} 62. e4 {[%emt 0:01:52] Weighted Error Value: White=0.57/Black=0.85} 1-0